[Event "Reykjavik Open 2024"]
[Site "Reykjavik"]
[Date "2024.03.16"]
[Round "3.36"]
[White "Gokerkan, Cem Kaan"]
[Black "Mohamed Anees M"]
[Result "1/2-1/2"]
[ECO "A11"]
[WhiteElo "2523"]
[BlackElo "2271"]
[Annotator "TA"]
[PlyCount "236"]
[EventDate "2024.03.12"]
[EventCountry "ISL"]
[SourceTitle "playchess.com"]
[Source "ChessBase"]
[SourceQuality "1"]
[TimeControl "40/5400+30:1800+30"]

{[%evp 153,236,19,19,19,19,21,66,0,177,184,184,162,292,191,370,336,337,321,314,233,198,0,304,313,327,313,307,314,316,280,314,0,0,0,325,276,317,316,330,327,321,0,328,272,315,328,331,331,331,330,317,317,328,322,315,293,502,509,532,541,525,504,572,591,528,345,344,361,330,0,330,324,333,315,405,388,314,0,0,0,316,0,0,0,335]} 1. Nf3 {[%emt 0:00:56]} d5 {[%emt 0:01:07]} 2. g3 {[%emt 0:00:05]} Bf5 {[%emt 0:01:37]} 3. Bg2 {[%emt 0:00:19]} e6 {[%emt 0:00:07]} 4. O-O {[%emt 0:00:21]} Nf6 {[%emt 0:00:16]} 5. c4 {[%emt 0:00:12]} c6 {[%emt 0:01:42]} 6. Qb3 {[%emt 0:00:17]} Qb6 {[%emt 0:00:34]} 7. d3 {[%emt 0:00:05] A11: Reti-Eröffnung.} h6 {[%emt 0:01:06]} 8. cxd5 {[%emt 0:02:55]} exd5 {[%emt 0:01:42]} 9. Qc2 {[%emt 0:00:16]} Qc5 {[%emt 0:02:29]} 10. Qc3 $146 {[%emt 0:19:11]} ({Predecessor:} 10. Qa4 Qb4 11. Qd1 Be7 12. Nc3 O-O 13. a3 Qa5 14. Bf4 Bh7 15. b4 Qd8 16. Nd4 {1-0 Sorensen,H (2449)-Jarocka,L (2225) Munich Pfingst op-A 1st 2023 (2)}) 10... Nbd7 {[%emt 0:03:06]} 11. Be3 {[%emt 0:00:00]} Qxc3 {[%emt 0:00:52]} 12. bxc3 {[%emt 0:00:00]} Bd6 {[%emt 0:10:49]} 13. a4 {[%emt 0:00:00]} O-O {[%emt 0:04:15]} 14. a5 {[%emt 0:01:06]} a6 {[%emt 0:01:44]} 15. Nd4 {[%emt 0:16:39]} Bh7 {[%emt 0:01:47]} 16. Bh3 {[%emt 0:00:56]} Ne5 {[%emt 0:04:12]} 17. Nb3 {[%emt 0:11:08]} Rfe8 {[%emt 0:08:43]} 18. Ra2 {[%emt 0:00:08]} Re7 {[%emt 0:06:07]} 19. Bc5 {[%emt 0:02:37]} Ne8 {[%emt 0:00:28]} 20. N1d2 {[%emt 0:01:08]} g5 {[%emt 0:02:29]} 21. Rb1 {[%emt 0:02:35]} g4 {[%emt 0:00:40]} 22. Bf1 {[%emt 0:00:39]} Nd7 {[%emt 0:01:47]} 23. Be3 {[%emt 0:02:11]} h5 {[%emt 0:00:50]} 24. c4 {[%emt 0:09:14]} Nef6 {[%emt 0:07:23]} 25. Bg5 {[%emt 0:07:43]} Kg7 {[%emt 0:10:17]} 26. cxd5 {[%emt 0:03:56]} cxd5 {[%emt 0:00:05]} 27. Nd4 {[%emt 0:02:21]} Nc5 {[%emt 0:01:20]} 28. Rc2 {[%emt 0:03:32]} Ne6 {[%emt 0:01:57]} 29. Be3 {[%emt 0:01:08]} Rd8 {[%emt 0:01:23]} 30. N2b3 {[%emt 0:02:41]} Rdd7 {[%emt 0:04:45]} 31. Nxe6+ {[%emt 0:03:14]} fxe6 {[%emt 0:00:43]} 32. Bb6 {[%emt 0:00:01]} e5 {[%emt 0:01:24]} 33. Nc5 {[%emt 0:00:57]} Bxc5 {[%emt 0:00:10]} 34. Bxc5 {[%emt 0:00:03]} Re6 {[%emt 0:00:36]} 35. Rcb2 {[%emt 0:00:23]} Rc6 {[%emt 0:02:48]} 36. Ba7 {[%emt 0:00:03]} e4 {[%emt 0:02:15]} 37. Rxb7 {[%emt 0:00:25]} exd3 {[%emt 0:00:15]} 38. exd3 {[%emt 0:01:41]} Bf5 {[%emt 0:00:58]} 39. Bd4 {[%emt 0:02:16]} Kf7 {[%emt 0:00:33]} 40. R7b6 {[%emt 0:02:13]} Rdc7 {[%emt 0:00:50]} 41. Rxc6 {[%emt 0:22:28]} Rxc6 {[%emt 0:00:07]} 42. Rb6 {[%emt 0:00:05]} Rxb6 {[%emt 0:01:28]} 43. Bxb6 {[%emt 0:00:04]} Ne8 {[%emt 0:00:49]} 44. d4 {[%emt 0:00:58]} Bc8 {[%emt 0:00:07]} 45. Bc5 {[%emt 0:02:35]} Nf6 {[%emt 0:01:03]} 46. Bd6 {[%emt 0:01:43]} Ne4 {[%emt 0:00:16]} 47. Bf4 {[%emt 0:00:01]} Nc3 {[%emt 0:01:20]} 48. Kg2 {[%emt 0:01:43]} Nb5 {[%emt 0:00:39]} 49. Be5 {[%emt 0:00:09]} Na3 {[%emt 0:00:20]} 50. Bd3 {[%emt 0:00:39]} Nc4 {[%emt 0:00:28]} 51. Bc7 {[%emt 0:00:02]} Kf6 {[%emt 0:02:51]} 52. f3 {[%emt 0:01:25]} Nd2 {[%emt 0:02:23]} 53. fxg4 {[%emt 0:00:09]} hxg4 {[%emt 0:00:06]} 54. Bd8+ {[%emt 0:02:46]} Kf7 {[%emt 0:00:19]} 55. Be2 {[%emt 0:00:49]} Ne4 {[%emt 0:03:16]} 56. Bb6 {[%emt 0:01:26]} Kf6 {[%emt 0:01:55]} 57. Bd3 {[%emt 0:00:20]} Kf7 {[%emt 0:01:57]} 58. Kf1 {[%emt 0:00:27]} Nd2+ {[%emt 0:00:27]} 59. Ke2 {[%emt 0:00:56]} Nc4 {[%emt 0:00:06]} 60. Bc7 {[%emt 0:00:34]} Ke7 {[%emt 0:00:30]} 61. Bb6 {[%emt 0:02:53]} Kd6 {[%emt 0:00:49]} 62. Bc5+ {[%emt 0:01:39]} Kc6 {[%emt 0:02:03]} 63. Bb4 {[%emt 0:00:01]} Kb5 {[%emt 0:00:42]} 64. Be1 {[%emt 0:00:01]} Ka4 {[%emt 0:01:26]} 65. Bg6 {[%emt 0:00:05]} Bd7 {[%emt 0:05:03]} 66. Bf7 {[%emt 0:00:25]} Nxa5 {[%emt 0:00:05]} 67. Bxd5 {[%emt 0:00:14]} Nc6 {[%emt 0:00:50]} 68. Ke3 {[%emt 0:00:51]} Nb4 {[%emt 0:00:45]} 69. Be4 {[%emt 0:00:19]} a5 {[%emt 0:00:15]} 70. d5 {[%emt 0:01:28]} Kb3 {[%emt 0:00:31]} 71. d6 {[%emt 0:02:10]} Kc4 {[%emt 0:02:27]} 72. Kf4 {[%emt 0:00:33]} a4 {[%emt 0:00:57]} 73. Bf5 {[%emt 0:00:54]} a3 {[%emt 0:04:28]} 74. Bxd7 {[%emt 0:00:24]} Nd5+ {[%emt 0:00:01]} 75. Kg5 {[%emt 0:00:25]} a2 {[%emt 0:00:09]} 76. Bb5+ {[%emt 0:00:13]} Kxb5 {[%emt 0:02:38]} 77. d7 {[%emt 0:00:01]} (77. Kxg4 a1=Q (77... a1=B 78. Kf5 $16) 78. Bf2 Qd1+ 79. Kh4 Nf6 80. Kg5 Ne4+ (80... Qxd6 81. Kf5 Nd7 $19)) 77... a1=Q {[%emt 0:00:19]} 78. d8=Q {[%emt 0:00:05]} (78. d8=B Qxe1 79. Kf5 Ne3+ 80. Kf4 Qe2 81. Ke5 Nc4+ (81... Qxh2 82. Kf4 Qf2+ 83. Ke5 Qxg3+ 84. Ke6 Qf3 85. Bg5 g3 86. Bh4 g2 87. Bf2 Qxf2 88. Kd6 Qf6+ 89. Kd7 Qf7+ 90. Kd8 g1=Q 91. Kc8 Qgg8#) 82. Kf5 Qf3+ (82... Qxh2 $2 83. Bh4 $19) 83. Kg5 Ne3 84. Bc7 Qf5+ 85. Kh6 Qf6+ 86. Kh5 Qf7+ 87. Kg5 Qxc7 88. Kh6 Qc6+ (88... Qa5 89. Kg5 Qb6 90. h4 gxh3 91. Kf4 h2 92. g4 h1=Q 93. Ke5 Qf3 94. g5 Ng4#) 89. Kg5 Qd6 90. Kh5 Qf6 91. h4 gxh3 92. g4 h2 93. g5 h1=Q#) 78... Qg7+ {[%emt 0:05:26]} 79. Kf5 {[%emt 0:00:02]} Kc4 {[%emt 0:00:47]} 80. Qc8+ {[%emt 0:00:44]} (80. Bd2 $1 $14) 80... Kb3 $2 {[%emt 0:03:24]} (80... Kd4 $1 $11 81. Bf2+ Ne3+ 82. Bxe3+ Kxe3) 81. Qe6 {[%emt 0:00:42]} Qd4 {[%emt 0:00:07]} 82. Kg5 {[%emt 0:00:56]} Kc2 {[%emt 0:00:56]} (82... Ka3 {war einen Versuch wert.} 83. Qa6+ (83. Qxg4 Qf6+ 84. Kh5 Qh8+ 85. Kg5 Qf6+ 86. Kh5 Qh8+ 87. Kg5 Qf6+ $11) 83... Kb3) 83. Bf2 {[%emt 0:01:21]} (83. Qxg4 Qf6+ 84. Kh5 Qh8+ 85. Kg5 Qd8+ 86. Kh6 Qh8+ 87. Kg5 Qf6+ 88. Kh5 Qh8+ 89. Kg5 $11) 83... Qg7+ $2 {[%emt 0:01:12]} (83... Qxf2 84. Qxd5 Kb2 85. Qe5+ (85. Kxg4 Qxh2 86. Qe5+ Kc2 $16) 85... Ka3 86. Qd6+ (86. Kxg4 Qxh2 87. Qd6+ Kb2 $14) 86... Kb3 87. Qe6+ (87. Kxg4 Qxh2 88. Qd5+ Kb4 $14) 87... Ka3) 84. Kh4 {[%emt 0:00:28]} (84. Qg6+ Qxg6+ 85. Kxg6 Kd1 $11) 84... Nf6 {[%emt 0:01:32]} 85. Qe2+ {[%emt 0:00:14]} Kc3 {[%emt 0:01:21]} 86. Qe3+ {[%emt 0:00:01]} Kc2 {[%emt 0:00:06]} 87. Qe2+ {[%emt 0:00:54]} (87. Qc5+ $142 $1 Kd1 88. Qd4+ Ke2 89. Be3 (89. Qe3+ Kf1 $11)) 87... Kc3 $18 {[%emt 0:00:04]} 88. Be3 $1 {[%emt 0:00:52]} Qg6 {[%emt 0:01:03]} 89. Qd2+ {[%emt 0:00:04]} Kb3 {[%emt 0:00:30]} 90. Qd1+ {[%emt 0:00:01]} Kc4 {[%emt 0:00:45] [#]} 91. Qd4+ $1 {[%emt 0:00:04]} Kb3 {[%emt 0:00:17]} 92. Qd1+ $2 {[%emt 0:00:06]} (92. Qe5 $18) 92... Kc4 $11 {[%emt 0:00:09]} 93. Qd4+ $2 {[%emt 0:00:37][%mdl 8192]} (93. Qa4+ $11 Kd5 94. Qb5+ Ke6 95. Qc6+ Kf7 96. Qb7+ Kg8 97. Qb8+ Kf7 98. Qc7+ Kg8 99. Qc8+ Kf7 100. Qc7+ Kg8 101. Qe5) 93... Kb3 $18 {[%emt 0:00:04]} 94. Qe5 {[%emt 0:01:02]} Kc4 {[%emt 0:02:00]} 95. Qg5 {[%emt 0:00:25]} Qf7 {[%emt 0:00:53]} 96. Qf5 {[%emt 0:00:16]} Qg7 {[%emt 0:02:04]} 97. Qg5 {[%emt 0:00:26]} Qf7 $1 {[%emt 0:00:11]} 98. Qh6 {[%emt 0:00:38]} Kd3 {[%emt 0:00:48]} 99. Bg5 {[%emt 0:00:05]} Ne4 {[%emt 0:00:43]} 100. Qa6+ {[%emt 0:00:02]} (100. Kxg4 Ke2 $14) 100... Kd4 {[%emt 0:00:52]} 101. Qa1+ {[%emt 0:00:01]} (101. Kxg4 Nf2+ 102. Kh4 Qh7+ 103. Qh6 Qe4+ 104. Bf4 Qe7+ 105. Kh5 Qe2+ 106. Kg6 Qe4+ 107. Kg7 Qb7+ 108. Kh8 Qc8+ 109. Kh7 Ke4 $14) 101... Nc3 {[%emt 0:02:00]} 102. Qg1+ {[%emt 0:00:21]} (102. Kxg4 Qd7+ 103. Kh5 Qf7+ 104. Kh6 Qf8+ 105. Kh5 Qf7+ 106. Kh6 Qf8+ 107. Kh5 Qf7+ $11) 102... Kc4 {[%emt 0:00:29]} 103. Qe3 {[%emt 0:01:59]} ({Und nicht} 103. Kxg4 Qe6+ 104. Kh5 Qe8+ 105. Kh6 Qh8+ 106. Kg6 Qg8+ 107. Kf5 Qc8+ 108. Kg6 Qg8+ 109. Kh6 Qh8+ 110. Kg6 Qg8+ $11) 103... Qh7+ {[%emt 0:00:25] [#]} 104. Bh6 $1 {[%emt 0:00:46]} Nd5 $2 {[%emt 0:02:24]} (104... Ne4 105. Kxg4 Qd7+ 106. Kf3 Nc3) 105. Qe6 $18 {[%emt 0:00:15]} Kc5 {[%emt 0:00:50]} 106. Kxg4 {[%emt 0:00:19]} Qd3 {[%emt 0:00:29]} 107. Bf8+ {[%emt 0:01:11]} Kd4 {[%emt 0:00:05]} 108. Bg7+ {[%emt 0:00:05]} Kc5 {[%emt 0:00:04]} 109. Qc8+ {[%emt 0:01:27]} Kd6 {[%emt 0:00:32]} 110. Bf8+ {[%emt 0:00:05]} Ke5 {[%emt 0:00:04]} 111. Bg7+ {[%emt 0:00:08]} Kd6 {[%emt 0:00:01]} 112. Qf8+ {[%emt 0:00:22]} Ke6 {[%emt 0:00:11]} 113. Qg8+ {[%emt 0:00:11]} Ke7 {[%emt 0:00:17]} 114. Bf8+ {[%emt 0:01:01]} Kf6 {[%emt 0:00:01]} 115. Bg7+ $2 {[%emt 0:01:00]} (115. Qg7+ $18 Ke6 116. Qg8+ Kf6 117. Kh4) 115... Ke7 $11 {[%emt 0:00:01]} 116. Qf8+ $2 {[%emt 0:00:24][%mdl 8192]} (116. Ba1 $11 Qe2+ 117. Kg5 Qd2+ 118. Kg6 Qc2+ 119. Kg5 Qxh2 120. Bf6+ (120. Qxd5 Qxg3+ 121. Kh5 Qh2+ 122. Kg4 Qe2+ 123. Qf3 Qxf3+ 124. Kxf3 $11) 120... Kd6 (120... Nxf6 121. Qg7+ Kd6 122. Qxf6+ Kc5 123. Qf4 $11) 121. Qf8+ Kc6 122. Be5 Qd2+ 123. Kg6) 116... Ke6 $18 {[%emt 0:00:07]} 117. Qc8+ $2 {[%emt 0:00:09]} (117. h4 $18) 117... Kf7 $11 {[%emt 0:00:09]} 118. Qf8+ $2 {[%emt 0:00:37][%mdl 8192]} (118. Bf8 $11) 118... Ke6 {[%emt 0:01:19]} 1/2-1/2

[Event "Reykjavik Open 2024"]
[Site "Reykjavik"]
[Date "2024.03.16"]
[Round "3.37"]
[White "Bisby, Daniel L"]
[Black "Prraneeth Vuppala"]
[Result "1-0"]
[ECO "B50"]
[WhiteElo "2273"]
[BlackElo "2506"]
[Annotator "TA"]
[PlyCount "137"]
[EventDate "2024.03.12"]
[EventCountry "ISL"]
[SourceTitle "playchess.com"]
[Source "ChessBase"]
[SourceQuality "1"]
[TimeControl "40/5400+30:1800+30"]

{[%evp 29,137,-19,8,10,27,22,15,22,25,16,50,41,61,59,47,31,68,33,36,0,0,-7,0,-31,0,0,0,0,0,0,0,0,0,0,0,0,0,0,0,0,26,29,18,42,71,64,131,124,184,181,188,180,175,179,176,183,168,186,190,179,488,483,462,373,373,373,783,747,786,737,1070,1003,2092,2065,2049,1315,2264,578,561,529,472,465,570,567,796,796,996,941,847,834,29984,29982,29982,29978,29978,29979,29979,29980,29980,29981,29981,29982,29982,29983,29983,29984,29984,29985,29985,29986]} 1. e4 {[%emt 0:00:04]} c5 {[%emt 0:00:05]} 2. Nf3 {[%emt 0:01:20]} d6 {[%emt 0:00:05]} 3. c3 {[%emt 0:01:34]} Nf6 {[%emt 0:00:11]} 4. Be2 {[%emt 0:00:23]} g6 {[%emt 0:00:41]} 5. O-O {[%emt 0:01:09]} Bg7 {[%emt 0:00:40]} 6. d3 {[%emt 0:03:04]} O-O {[%emt 0:00:13]} 7. Nbd2 {[%emt 0:00:27] 7.Be3 ist die moderne Fortsetzung.} Nc6 {[%emt 0:02:16]} 8. Re1 {[%emt 0:03:08]} e5 {[%emt 0:03:40] B50: Sizilianisch (Verschiedenes mit 2...d6).} 9. a3 {[%emt 0:07:29]} a6 {[%emt 0:06:26]} 10. Bf1 $146 {[%emt 0:05:33]} ({Predecessor:} 10. b4 b6 11. Bf1 Re8 12. Bb2 h6 13. h3 Rb8 14. Rc1 Bb7 15. Qc2 b5 16. Qb1 {1-0 Cyborowski,L (2370)-Blehm,P (2420) POL-ch U18 Sopot 1997}) 10... b5 {[%emt 0:01:10]} 11. b4 {[%emt 0:01:14]} Bb7 {[%emt 0:01:07]} 12. Nb3 {[%emt 0:07:04]} Nd7 {[%emt 0:06:06]} 13. bxc5 {[%emt 0:10:38]} dxc5 {[%emt 0:01:00]} 14. Bg5 {[%emt 0:03:59]} Qc7 {[%emt 0:02:02]} 15. Qd2 {[%emt 0:02:19]} Qd6 {[%emt 0:02:35]} 16. Bh6 {[%emt 0:04:22]} Rfd8 {[%emt 0:04:19]} 17. Bxg7 {[%emt 0:01:53]} Kxg7 {[%emt 0:00:03]} 18. Qe3 {[%emt 0:03:48]} Rac8 {[%emt 0:03:55]} 19. h4 {[%emt 0:03:21]} Re8 {[%emt 0:05:51]} 20. g3 {[%emt 0:02:37]} Nd8 {[%emt 0:05:14]} 21. Bh3 {[%emt 0:03:10]} Ne6 {[%emt 0:00:47]} 22. h5 {[%emt 0:03:19]} Nb6 {[%emt 0:03:39]} 23. Rad1 {[%emt 0:04:18]} Rc7 {[%emt 0:00:45]} 24. Nbd2 {[%emt 0:09:17]} Na4 {[%emt 0:09:02]} 25. Bxe6 {[%emt 0:05:10]} Qxe6 {[%emt 0:01:46]} 26. Rc1 {[%emt 0:02:25]} Rec8 {[%emt 0:02:45]} (26... Qh3 {hält die Spannung aufrecht.} 27. d4 Qxh5 28. Nxe5 Qh6) 27. Kg2 {[%emt 0:00:30]} Qf6 {[%emt 0:08:10]} ({Ein No Go ist} 27... gxh5 28. Rh1 Qh6 29. Qxh6+ (29. Nxe5 Qxe3 30. fxe3 f6 $17) 29... Kxh6 30. Nxe5 $14) 28. Rh1 {[%emt 0:00:43]} ({Auf keinen Fall} 28. h6+ Kg8 $14) 28... Kg8 {[%emt 0:00:59]} 29. hxg6 {[%emt 0:00:33]} fxg6 {[%emt 0:00:18]} 30. Rh6 {[%emt 0:04:28]} Rd8 {[%emt 0:02:05]} 31. Rch1 {[%emt 0:01:43]} Nb2 {[%emt 0:02:57]} 32. Qg5 {[%emt 0:03:54]} Qxg5 {[%emt 0:22:23]} 33. Nxg5 {[%emt 0:00:03]} Rdd7 {[%emt 0:00:05]} 34. Ne6 {[%emt 0:00:19]} Nxd3 {[%emt 0:00:13]} 35. Nxc7 {[%emt 0:00:17]} Rxc7 {[%emt 0:00:02]} 36. f3 {[%emt 0:00:55]} c4 {[%emt 0:01:05] [#]} 37. Nf1 $1 {[%emt 0:01:07]} a5 {[%emt 0:01:59]} (37... Ne1+ $14 38. Kf2 Nd3+ 39. Ke3 Rd7) 38. Ne3 $16 {[%emt 0:00:41]} b4 {[%emt 0:01:27]} (38... Bc6 $16 {kämpft weiter.} 39. R6h2 h5) 39. axb4 $18 {[%emt 0:00:34]} axb4 {[%emt 0:00:08]} 40. cxb4 {[%emt 0:00:12]} c3 {[%emt 0:00:28]} 41. Nc2 {[%emt 0:05:40]} Bc6 {[%emt 0:05:56]} 42. Ra1 {[%emt 0:07:18]} Nb2 {[%emt 0:00:48]} 43. Rhh1 {[%emt 0:04:38]} Ba4 {[%emt 0:10:46] [#]} 44. Ne3 $1 {[%emt 0:05:08]} Kg7 $2 {[%emt 0:13:12]} (44... c2 {ist zäher.} 45. Rxa4 Nxa4) 45. Nd5 $18 {[%emt 0:02:12]} Rc4 {[%emt 0:02:33]} 46. b5 {[%emt 0:03:57]} c2 {[%emt 0:00:22]} 47. Nb6 {[%emt 0:02:50]} Rd4 $2 {[%emt 0:01:09]} (47... Bxb5 48. Nxc4 Bxc4) 48. Nxa4 $18 {[%emt 0:00:53]} Nxa4 {[%emt 0:00:04]} 49. Rhc1 {[%emt 0:01:29]} Rd2+ {[%emt 0:00:26]} 50. Kh3 {[%emt 0:00:28]} Nc5 {[%emt 0:01:00]} 51. Ra2 {[%emt 0:01:19]} Ne6 {[%emt 0:00:21]} 52. Raxc2 {[%emt 0:00:53]} Rd3 {[%emt 0:00:30]} 53. Kg2 {[%emt 0:00:26]} (53. Rb2 $142 {Und b6 würde nun gewinnen.} Rd7 54. b6) 53... Rb3 $18 {[%emt 0:00:06]} 54. Rc6 {[%emt 0:00:19]} Nd4 {[%emt 0:00:15]} 55. Rc7+ {[%emt 0:00:42]} Kf6 {[%emt 0:00:19]} 56. Rxh7 {[%emt 0:00:30]} Rb2+ {[%emt 0:00:02]} 57. Kh3 {[%emt 0:00:17]} Rxb5 {[%emt 0:01:26]} 58. Kg4 {[%emt 0:00:32]} Rb2 {[%emt 0:00:36]} 59. Rcc7 {[%emt 0:00:20]} Rg2 {[%emt 0:00:51]} 60. Ra7 {[%emt 0:00:51]} Rb2 {[%emt 0:00:34]} 61. Ra6+ {[%emt 0:00:11]} Ne6 {[%emt 0:00:02]} 62. Rd7 {[%emt 0:00:29]} Rb8 {[%emt 0:00:34]} 63. Rdd6 {[%emt 0:00:13]} Re8 {[%emt 0:00:01]} 64. Rxe6+ {[%emt 0:00:29]} Rxe6 {[%emt 0:00:55]} 65. Rxe6+ {[%emt 0:00:06]} Kxe6 {[%emt 0:00:02]} 66. Kg5 {[%emt 0:00:09]} Kf7 {[%emt 0:00:01]} 67. f4 {[%emt 0:00:20]} exf4 {[%emt 0:00:06]} 68. gxf4 {[%emt 0:00:05]} Kg7 {[%emt 0:00:06]} 69. e5 {[%emt 0:00:15]} 1-0

[Event "Reykjavik Open 2024"]
[Site "Reykjavik"]
[Date "2024.03.16"]
[Round "3.38"]
[White "Karamsetty, Jeevan"]
[Black "Botez, Alexandra"]
[Result "1-0"]
[ECO "C00"]
[WhiteElo "2187"]
[BlackElo "1986"]
[Annotator "RC"]
[PlyCount "69"]
[EventDate "2024.03.12"]
[EventCountry "ISL"]
[SourceTitle "playchess.com"]
[Source "ChessBase"]
[SourceQuality "1"]
[TimeControl "40/5400+30:1800+30"]

1. e4 {[%emt 0:00:04]} e6 {[%emt 0:00:08]} 2. d3 {[%emt 0:00:08]} d5 {[%emt 0:00:19]} 3. Nd2 {[%emt 0:00:07]} Nf6 {[%emt 0:00:43]} 4. Ngf3 {[%emt 0:00:43]} Be7 {[%emt 0:00:56]} 5. c3 {[%emt 0:01:33]} c5 {[%emt 0:00:19]} 6. g3 {[%emt 0:00:20]} Nc6 {[%emt 0:00:40]} 7. Bg2 {[%emt 0:00:17]} Qc7 {[%emt 0:01:11]} 8. O-O {[%emt 0:00:17]} b5 {[%emt 0:03:24]} 9. Re1 {[%emt 0:03:23]} O-O {[%emt 0:00:20]} 10. exd5 {[%emt 0:00:49]} exd5 {[%emt 0:01:06]} 11. Nf1 {[%emt 0:10:38]} h6 {[%emt 0:05:38]} 12. d4 {[%emt 0:11:27]} Bg4 {[%emt 0:10:39]} 13. Ne3 {[%emt 0:04:11]} Bxf3 {[%emt 0:02:10]} 14. Qxf3 {[%emt 0:03:16]} Rfd8 {[%emt 0:15:42]} 15. Nf5 {[%emt 0:01:07]} cxd4 {[%emt 0:00:39]} 16. Bxh6 {[%emt 0:02:05]} Bf8 {[%emt 0:05:49]} 17. Bg5 {[%emt 0:04:07]} Ne4 {[%emt 0:00:29]} 18. Bxd8 {[%emt 0:05:59]} Rxd8 {[%emt 0:00:09]} 19. Nxd4 {[%emt 0:04:40]} Bc5 {[%emt 0:06:58]} 20. Qd3 {[%emt 0:09:13]} Bxd4 {[%emt 0:05:32]} 21. cxd4 {[%emt 0:01:12]} Nf6 {[%emt 0:01:31]} 22. Rac1 {[%emt 0:02:44]} Qb6 {[%emt 0:00:11]} 23. Rc5 {[%emt 0:01:14]} a6 {[%emt 0:00:31]} 24. Rec1 {[%emt 0:00:30]} Rd6 {[%emt 0:01:09]} 25. a3 {[%emt 0:01:03]} g6 {[%emt 0:01:12]} 26. b4 {[%emt 0:04:54]} Kg7 {[%emt 0:00:07]} 27. h3 {[%emt 0:02:25]} Nd8 {[%emt 0:02:32]} 28. g4 {[%emt 0:02:48]} Ne6 {[%emt 0:00:27]} 29. Qe3 {[%emt 0:00:26]} Qb7 {[%emt 0:02:27]} 30. Qe5 {[%emt 0:02:27]} Nxc5 {[%emt 0:00:29]} 31. Qxd6 {[%emt 0:00:19]} Ne6 {[%emt 0:02:05]} 32. Qe5 {[%emt 0:00:25]} g5 {[%emt 0:00:10]} 33. h4 {[%emt 0:00:31]} Kg6 {[%emt 0:00:11]} 34. Qf5+ {[%emt 0:00:29]} Kg7 {[%emt 0:00:06]} 35. hxg5 {[%emt 0:00:16]} 1-0

[Event "Reykjavik Open 2024"]
[Site "Reykjavik"]
[Date "2024.03.16"]
[Round "3.39"]
[White "Botez, Andrea"]
[Black "Clare, Philip"]
[Result "1-0"]
[ECO "B08"]
[WhiteElo "1825"]
[BlackElo "1607"]
[Annotator "NA RC"]
[PlyCount "49"]
[EventDate "2024.03.12"]
[EventCountry "ISL"]
[SourceTitle "playchess.com"]
[Source "ChessBase"]
[SourceQuality "1"]
[TimeControl "40/5400+30:1800+30"]

1. d4 {[%emt 0:00:02]} Nf6 {[%emt 0:00:13]} 2. Nc3 {[%emt 0:00:23]} g6 {[%emt 0:00:17]} 3. e4 {[%emt 0:00:25]} d6 {[%emt 0:00:44]} 4. Be3 {[%emt 0:00:42]} Bg7 {[%emt 0:00:44]} 5. Qd2 {[%emt 0:01:39]} O-O {[%emt 0:01:34]} 6. O-O-O {[%emt 0:00:54]} Nbd7 {[%emt 0:00:51]} 7. Bh6 {[%emt 0:02:47]} e5 {[%emt 0:03:47]} 8. Bxg7 {[%emt 0:05:09]} Kxg7 {[%emt 0:00:36]} 9. dxe5 {[%emt 0:10:05]} Nxe5 {[%emt 0:02:07]} 10. f4 {[%emt 0:00:46]} Nc6 {[%emt 0:02:56]} 11. Nf3 {[%emt 0:09:02]} Bd7 {[%emt 0:09:25]} 12. e5 {[%emt 0:05:21]} Ne8 {[%emt 0:06:18]} 13. exd6 {[%emt 0:07:35]} Nxd6 {[%emt 0:04:09]} 14. h3 {[%emt 0:21:13]} a5 {[%emt 0:16:03]} 15. g4 {[%emt 0:06:01]} f5 {[%emt 0:04:36]} 16. Nb5 {[%emt 0:10:05]} Rf6 {[%emt 0:07:11]} 17. g5 {[%emt 0:05:35]} Re6 {[%emt 0:01:43]} 18. Qc3+ {[%emt 0:00:18]} Kg8 {[%emt 0:01:44]} 19. Nxd6 {[%emt 0:00:39]} cxd6 {[%emt 0:08:38]} 20. Bc4 {[%emt 0:00:51]} Nb4 {[%emt 0:00:31]} 21. Rxd6 {[%emt 0:01:16]} Qe7 {[%emt 0:01:38]} 22. Rhd1 {[%emt 0:00:13]} Bb5 {[%emt 0:02:44]} 23. Rxe6 {[%emt 0:02:27]} Bxc4 {[%emt 0:03:25]} 24. Qxc4 {[%emt 0:00:06]} b5 {[%emt 0:01:23]} 25. Rxg6+ {[%emt 0:01:09]} 1-0